[Event "Open Nuevo Centro. Jornada 1"]
[Site "Chess.com"]
[Date "2020.06.19"]
[Round "5"]
[White "Beneyto de Ramon, Guillermo"]
[Black "Crevillen Abad, Clemente"]
[Result "1/2-1/2"]
[WhiteElo "1494"]
[BlackElo "1768"]
[TimeControl "180+2"]
[EndTime "11:31:36 PDT"]
[Termination "Tablas por rey ahogado"]

1. c4 {[%clk 0:03:01.5]} 1... Nf6 {[%clk 0:02:59.8]} 2. Nc3 {[%clk 0:03:02.6]}
2... e6 {[%clk 0:02:57.2]} 3. g3 {[%clk 0:03:01.6]} 3... d5 {[%clk 0:02:52.9]}
4. cxd5 {[%clk 0:03:02.4]} 4... exd5 {[%clk 0:02:52.6]} 5. d4 {[%clk 0:03:03.1]}
5... Be7 {[%clk 0:02:42.8]} 6. Bg2 {[%clk 0:03:03.8]} 6... O-O {[%clk
0:02:43.1]} 7. Bg5 {[%clk 0:03:04.3]} 7... Nbd7 {[%clk 0:02:34.2]} 8. Nf3 {[%clk
0:02:52.7]} 8... c6 {[%clk 0:02:29.9]} 9. O-O {[%clk 0:02:50.9]} 9... h6 {[%clk
0:02:29.5]} 10. Bxf6 {[%clk 0:02:51]} 10... Bxf6 {[%clk 0:02:27.3]} 11. e3
{[%clk 0:02:49.5]} 11... Re8 {[%clk 0:02:22.8]} 12. Ne2 {[%clk 0:02:50]} 12...
Nf8 {[%clk 0:02:20.4]} 13. Nf4 {[%clk 0:02:50.8]} 13... Bg4 {[%clk 0:02:13]} 14.
h3 {[%clk 0:02:49.9]} 14... Bd7 {[%clk 0:02:12]} 15. Kh2 {[%clk 0:02:47]} 15...
Ne6 {[%clk 0:01:59.7]} 16. Nxe6 {[%clk 0:02:46.2]} 16... Bxe6 {[%clk 0:01:59.6]}
17. Nd2 {[%clk 0:02:46.8]} 17... Qd7 {[%clk 0:01:52]} 18. Nb3 {[%clk 0:02:39.6]}
18... b6 {[%clk 0:01:51.8]} 19. Rc1 {[%clk 0:02:37.7]} 19... Rac8 {[%clk
0:01:51.3]} 20. Qc2 {[%clk 0:02:31.6]} 20... Bf5 {[%clk 0:01:44.1]} 21. Qc3
{[%clk 0:02:25.2]} 21... Be4 {[%clk 0:01:30.5]} 22. Bxe4 {[%clk 0:02:24.8]}
22... Rxe4 {[%clk 0:01:30.9]} 23. Nd2 {[%clk 0:02:25.3]} 23... Ree8 {[%clk
0:01:29.5]} 24. Rh1 {[%clk 0:02:25.2]} 24... Be7 {[%clk 0:01:25.3]} 25. Kg2
{[%clk 0:02:24.6]} 25... a5 {[%clk 0:01:19.6]} 26. Nf3 {[%clk 0:02:19.5]} 26...
Bd6 {[%clk 0:01:14.6]} 27. a3 {[%clk 0:01:55.5]} 27... Qf5 {[%clk 0:01:13.9]}
28. Nh4 {[%clk 0:01:49.7]} 28... Qe4+ {[%clk 0:01:12.9]} 29. Nf3 {[%clk
0:01:50.4]} 29... Re6 {[%clk 0:01:12.9]} 30. Qc2 {[%clk 0:01:50.1]} 30... Kf8
{[%clk 0:00:29.2]} 31. Qxe4 {[%clk 0:01:45.7]} 31... Rxe4 {[%clk 0:00:25.3]} 32.
Rc2 {[%clk 0:01:45.3]} 32... Ke7 {[%clk 0:00:24.9]} 33. Rhc1 {[%clk 0:01:45.9]}
33... Kd7 {[%clk 0:00:25.4]} 34. Nd2 {[%clk 0:01:44.8]} 34... Re6 {[%clk
0:00:22.1]} 35. Kf3 {[%clk 0:01:41.5]} 35... f5 {[%clk 0:00:21.4]} 36. Nf1
{[%clk 0:01:36.3]} 36... g5 {[%clk 0:00:21.5]} 37. Nh2 {[%clk 0:01:36.2]} 37...
Be7 {[%clk 0:00:21.7]} 38. Kg2 {[%clk 0:01:36]} 38... Rf8 {[%clk 0:00:20.4]} 39.
Nf3 {[%clk 0:01:35.8]} 39... Bf6 {[%clk 0:00:19.5]} 40. Ne1 {[%clk 0:01:23.4]}
40... Bg7 {[%clk 0:00:15.8]} 41. Rc3 {[%clk 0:01:13.6]} 41... f4 {[%clk
0:00:15.9]} 42. g4 {[%clk 0:01:02.5]} 42... fxe3 {[%clk 0:00:15.8]} 43. Rxe3
{[%clk 0:01:03.5]} 43... Rxe3 {[%clk 0:00:14.7]} 44. fxe3 {[%clk 0:01:05.4]}
44... Re8 {[%clk 0:00:15.4]} 45. Kf2 {[%clk 0:01:05.2]} 45... Bf8 {[%clk
0:00:13.6]} 46. Nd3 {[%clk 0:01:03.4]} 46... Bd6 {[%clk 0:00:13.9]} 47. Rf1
{[%clk 0:00:58.8]} 47... Rf8+ {[%clk 0:00:14]} 48. Ke2 {[%clk 0:00:59.6]} 48...
Rxf1 {[%clk 0:00:14.4]} 49. Kxf1 {[%clk 0:01:00]} 49... c5 {[%clk 0:00:15.2]}
50. dxc5 {[%clk 0:00:58.6]} 50... bxc5 {[%clk 0:00:15.9]} 51. Kf2 {[%clk
0:00:57]} 51... Kc6 {[%clk 0:00:15.9]} 52. Ke2 {[%clk 0:00:57.6]} 52... a4
{[%clk 0:00:15.8]} 53. Kd2 {[%clk 0:00:58.3]} 53... c4 {[%clk 0:00:15.2]} 54.
Nc1 {[%clk 0:00:48.8]} 54... Be5 {[%clk 0:00:14.8]} 55. Kc2 {[%clk 0:00:47.7]}
55... Kc5 {[%clk 0:00:15]} 56. Ne2 {[%clk 0:00:48.6]} 56... d4 {[%clk
0:00:14.6]} 57. exd4+ {[%clk 0:00:49.7]} 57... Bxd4 {[%clk 0:00:15.4]} 58. Ng3
{[%clk 0:00:42]} 58... c3 {[%clk 0:00:11]} 59. bxc3 {[%clk 0:00:34.7]} 59... Bg7
{[%clk 0:00:10.9]} 60. Ne4+ {[%clk 0:00:35.2]} 60... Kc4 {[%clk 0:00:09.8]} 61.
Nd6+ {[%clk 0:00:35.1]} 61... Kd5 {[%clk 0:00:08.1]} 62. Nf5 {[%clk 0:00:36]}
62... Bf8 {[%clk 0:00:08.4]} 63. Kb2 {[%clk 0:00:35.3]} 63... Kc4 {[%clk
0:00:07.4]} 64. h4 {[%clk 0:00:32.9]} 64... gxh4 {[%clk 0:00:07.4]} 65. Nxh4
{[%clk 0:00:34.8]} 65... Kd5 {[%clk 0:00:06.3]} 66. Ng2 {[%clk 0:00:27.6]} 66...
Ke4 {[%clk 0:00:05.8]} 67. Kc2 {[%clk 0:00:20.1]} 67... Bxa3 {[%clk 0:00:05.4]}
68. Kd2 {[%clk 0:00:20.4]} 68... Bd6 {[%clk 0:00:04.6]} 69. Ne3 {[%clk
0:00:21.4]} 69... a3 {[%clk 0:00:04.2]} 70. Nc2 {[%clk 0:00:21.7]} 70... Kf3
{[%clk 0:00:03.4]} 71. c4 {[%clk 0:00:21.7]} 71... Kxg4 {[%clk 0:00:02.4]} 72.
Ke2 {[%clk 0:00:22.5]} 72... h5 {[%clk 0:00:02.7]} 73. Kf2 {[%clk 0:00:23.2]}
73... h4 {[%clk 0:00:03]} 74. Kg2 {[%clk 0:00:22.6]} 74... h3+ {[%clk
0:00:03.8]} 75. Kh1 {[%clk 0:00:23.5]} 75... Bc5 {[%clk 0:00:04.4]} 76. Nxa3
{[%clk 0:00:19.7]} 76... Bxa3 {[%clk 0:00:02.1]} 77. Kh2 {[%clk 0:00:20.4]}
77... Bd6+ {[%clk 0:00:03.1]} 78. Kh1 {[%clk 0:00:21.5]} 78... Kg3 {[%clk
0:00:04.5]} 79. c5 {[%clk 0:00:21.8]} 79... Be5 {[%clk 0:00:04.7]} 80. c6 {[%clk
0:00:22.8]} 80... Bd6 {[%clk 0:00:05.6]} 81. c7 {[%clk 0:00:24.2]} 81... Bxc7
{[%clk 0:00:06.8]} 82. Kg1 {[%clk 0:00:24.7]} 82... Bd6 {[%clk 0:00:08]} 83. Kh1
{[%clk 0:00:26]} 83... Bc7 {[%clk 0:00:08.4]} 84. Kg1 {[%clk 0:00:27.2]} 84...
h2+ {[%clk 0:00:09.1]} 85. Kh1 {[%clk 0:00:29.1]} 85... Kg4 {[%clk 0:00:10.2]}
86. Kg2 {[%clk 0:00:29.3]} 86... Kh4 {[%clk 0:00:11.3]} 87. Kh1 {[%clk
0:00:30.1]} 87... Kg4 {[%clk 0:00:12.5]} 88. Kg2 {[%clk 0:00:31]} 88... Kh4
{[%clk 0:00:13.7]} 89. Kh1 {[%clk 0:00:32.5]} 89... Kg3 {[%clk 0:00:13.5]}
1/2-1

[Event "Open Nuevo Centro. Jornada 1"]
[Site "Chess.com"]
[Date "2020.06.19"]
[Round "6"]
[White "Alegre Romaguera, Francesc"]
[Black "Galiana Ferrer, Oscar"]
[Result "1-0"]
[WhiteElo "1220"]
[BlackElo "891"]
[TimeControl "180+2"]
[EndTime "11:34:08 PDT"]
[Termination "Victoria de Francesc_08 por abandono"]

1. e4 {[%clk 0:03:01.9]} 1... e5 {[%clk 0:03:00.1]} 2. Nf3 {[%clk 0:03:02.5]}
2... Nc6 {[%clk 0:02:59.7]} 3. Bb5 {[%clk 0:03:03.5]} 3... d6 {[%clk 0:02:49.6]}
4. d4 {[%clk 0:03:03.7]} 4... exd4 {[%clk 0:02:48.6]} 5. Nxd4 {[%clk 0:03:04.3]}
5... Bd7 {[%clk 0:02:46]} 6. Nxc6 {[%clk 0:03:00.6]} 6... Bxc6 {[%clk
0:02:46.1]} 7. Bxc6+ {[%clk 0:03:00]} 7... bxc6 {[%clk 0:02:45.8]} 8. Nc3 {[%clk
0:03:00.1]} 8... Nf6 {[%clk 0:02:45.8]} 9. Bg5 {[%clk 0:02:59.2]} 9... Be7
{[%clk 0:02:45.8]} 10. O-O {[%clk 0:02:57.5]} 10... O-O {[%clk 0:02:46.5]} 11.
Qf3 {[%clk 0:02:47.8]} 11... h6 {[%clk 0:02:44.8]} 12. Bh4 {[%clk 0:02:44.5]}
12... c5 {[%clk 0:02:36.5]} 13. Rad1 {[%clk 0:02:43.3]} 13... c4 {[%clk
0:02:31.1]} 14. e5 {[%clk 0:02:42]} 14... dxe5 {[%clk 0:02:29.3]} 15. Rxd8
{[%clk 0:02:41.8]} 15... Rfxd8 {[%clk 0:02:29.4]} 16. Bxf6 {[%clk 0:02:41.3]}
16... Bxf6 {[%clk 0:02:29.6]} 17. Nd5 {[%clk 0:02:40.6]} 17... Rxd5 {[%clk
0:02:28]} 18. Qxd5 {[%clk 0:02:40.4]} 1

[Event "Open Nuevo Centro. Jornada 1"]
[Site "Chess.com"]
[Date "2020.06.19"]
[Round "6"]
[White "Fern�ndez Mart�n, Berta"]
[Black "Rabbani Perez, Ayoub "]
[Result "1-0"]
[WhiteElo "771"]
[BlackElo "237"]
[TimeControl "180+2"]
[EndTime "11:34:19 PDT"]
[Termination "Victoria de MikayoMata97 por jaque mate"]

1. e4 {[%clk 0:03:01.9]} 1... c5 {[%clk 0:03:01.2]} 2. Nc3 {[%clk 0:02:57]} 2...
c4 {[%clk 0:03:03.1]} 3. Bxc4 {[%clk 0:02:52.5]} 3... b5 {[%clk 0:02:43.3]} 4.
Bxb5 {[%clk 0:02:51.7]} 4... a6 {[%clk 0:02:42.6]} 5. Bc4 {[%clk 0:02:50.5]}
5... Nc6 {[%clk 0:02:39.6]} 6. d4 {[%clk 0:02:43.7]} 6... Nxd4 {[%clk
0:02:39.2]} 7. Qxd4 {[%clk 0:02:42.8]} 7... d5 {[%clk 0:02:38.8]} 8. exd5 {[%clk
0:02:39]} 8... Be6 {[%clk 0:02:37.2]} 9. Nf3 {[%clk 0:02:30.5]} 9... Qc7 {[%clk
0:02:33.2]} 10. dxe6 {[%clk 0:02:22.2]} 10... Rd8 {[%clk 0:02:30.6]} 11. exf7#
{[%clk 0:01:55.2]} 1

[Event "Open Nuevo Centro. Jornada 1"]
[Site "Chess.com"]
[Date "2020.06.19"]
[Round "6"]
[White "Simarro Peir�, Andr�s"]
[Black "Elenkov Olmo, Ivan"]
[Result "0-1"]
[WhiteElo "1022"]
[BlackElo "818"]
[TimeControl "180+2"]
[EndTime "11:34:54 PDT"]
[Termination "Victoria de IVANELEN por jaque mate"]

1. e4 {[%clk 0:03:01.4]} 1... e5 {[%clk 0:03:00]} 2. Nf3 {[%clk 0:02:59.5]} 2...
Nc6 {[%clk 0:02:59.5]} 3. Nc3 {[%clk 0:03:01.4]} 3... Nf6 {[%clk 0:02:58.9]} 4.
Bb5 {[%clk 0:03:03.3]} 4... a6 {[%clk 0:02:59.3]} 5. Bxc6 {[%clk 0:03:04.6]}
5... bxc6 {[%clk 0:03:00.5]} 6. Nxe5 {[%clk 0:03:03.4]} 6... Bb4 {[%clk
0:02:48.7]} 7. d3 {[%clk 0:03:02]} 7... Bxc3+ {[%clk 0:02:48.3]} 8. bxc3 {[%clk
0:03:01.8]} 8... O-O {[%clk 0:02:42.3]} 9. Nf3 {[%clk 0:03:03.1]} 9... Bb7
{[%clk 0:02:38.7]} 10. e5 {[%clk 0:03:02.7]} 10... Nd5 {[%clk 0:02:30.7]} 11.
O-O {[%clk 0:02:50.5]} 11... c5 {[%clk 0:02:25.9]} 12. c4 {[%clk 0:02:43.9]}
12... Nb6 {[%clk 0:02:20.1]} 13. Rb1 {[%clk 0:02:34.5]} 13... Bxf3 {[%clk
0:02:15.7]} 14. Qxf3 {[%clk 0:02:32.7]} 14... Qe7 {[%clk 0:02:06.9]} 15. Re1
{[%clk 0:02:27.1]} 15... f6 {[%clk 0:01:56]} 16. exf6 {[%clk 0:02:25.8]} 16...
Qxe1# {[%clk 0:01:48.5]} 0

[Event "Open Nuevo Centro. Jornada 1"]
[Site "Chess.com"]
[Date "2020.06.19"]
[Round "6"]
[White "Moreno Garc�a, Gonzalo "]
[Black "Yeste Campos, Manuel"]
[Result "0-1"]
[WhiteElo "598"]
[BlackElo "911"]
[TimeControl "180+2"]
[EndTime "11:35:04 PDT"]
[Termination "Victoria de Manuel_Yeste por jaque mate"]

1. e3 {[%clk 0:03:00.5]} 1... e5 {[%clk 0:02:59.6]} 2. Nf3 {[%clk 0:02:56.4]}
2... Nc6 {[%clk 0:02:59.1]} 3. e4 {[%clk 0:02:53]} 3... Nf6 {[%clk 0:02:57.5]}
4. Nc3 {[%clk 0:02:48.8]} 4... Be7 {[%clk 0:02:57.1]} 5. Bc4 {[%clk 0:02:44.4]}
5... O-O {[%clk 0:02:55.8]} 6. O-O {[%clk 0:02:42.2]} 6... d6 {[%clk 0:02:52.4]}
7. d3 {[%clk 0:02:38.6]} 7... Bg4 {[%clk 0:02:50.3]} 8. Bg5 {[%clk 0:02:34.3]}
8... Nd4 {[%clk 0:02:46.6]} 9. Nd5 {[%clk 0:02:11.6]} 9... Nxd5 {[%clk
0:02:44.8]} 10. Bxe7 {[%clk 0:02:09.9]} 10... Qxe7 {[%clk 0:02:43.2]} 11. exd5
{[%clk 0:02:08.5]} 11... Nxf3+ {[%clk 0:02:42.5]} 12. Kh1 {[%clk 0:01:56.5]}
12... Qg5 {[%clk 0:02:34.1]} 13. h3 {[%clk 0:01:54.8]} 13... Bxh3 {[%clk
0:02:33.8]} 14. gxh3 {[%clk 0:01:50.4]} 14... Nh4 {[%clk 0:02:27.5]} 15. d4
{[%clk 0:01:40.8]} 15... Qg2# {[%clk 0:02:27.5]} 0

[Event "Open Nuevo Centro. Jornada 1"]
[Site "Chess.com"]
[Date "2020.06.19"]
[Round "6"]
[White "Beneyto de Ramon, Guillermo"]
[Black "Amor�s P�rez, Manuel David"]
[Result "0-1"]
[WhiteElo "1489"]
[BlackElo "1652"]
[TimeControl "180+2"]
[EndTime "11:35:12 PDT"]
[Termination "Victoria de mpad1984 por jaque mate"]

1. c4 {[%clk 0:03:01.7]} 1... d5 {[%clk 0:03:00.5]} 2. cxd5 {[%clk 0:03:02.7]}
2... Qxd5 {[%clk 0:03:01.7]} 3. Nc3 {[%clk 0:03:04.6]} 3... Qd8 {[%clk
0:03:02.7]} 4. g3 {[%clk 0:03:06]} 4... c6 {[%clk 0:03:03.1]} 5. Bg2 {[%clk
0:03:07]} 5... Bf5 {[%clk 0:03:04.2]} 6. Nf3 {[%clk 0:03:07.3]} 6... e6 {[%clk
0:03:05.5]} 7. d4 {[%clk 0:03:05.5]} 7... Bb4 {[%clk 0:03:05.2]} 8. Bf4 {[%clk
0:03:03.5]} 8... Bxc3+ {[%clk 0:03:03.3]} 9. bxc3 {[%clk 0:03:04.2]} 9... Nf6
{[%clk 0:03:02.6]} 10. Nh4 {[%clk 0:02:58.5]} 10... Bg6 {[%clk 0:03:02.8]} 11.
Nxg6 {[%clk 0:02:58.2]} 11... hxg6 {[%clk 0:03:04]} 12. Bg5 {[%clk 0:02:58.8]}
12... Qa5 {[%clk 0:03:03.6]} 13. Qd3 {[%clk 0:02:54.9]} 13... Qxg5 {[%clk
0:02:59.6]} 14. h4 {[%clk 0:02:50.5]} 14... Qf5 {[%clk 0:02:59.1]} 15. Qxf5
{[%clk 0:02:47.6]} 15... gxf5 {[%clk 0:02:56.4]} 16. Rb1 {[%clk 0:02:49.2]}
16... b6 {[%clk 0:02:55.8]} 17. Rb4 {[%clk 0:02:41.6]} 17... Kd7 {[%clk
0:02:56.3]} 18. O-O {[%clk 0:02:38.5]} 18... Na6 {[%clk 0:02:55.9]} 19. Rb3
{[%clk 0:02:35.8]} 19... Nc7 {[%clk 0:02:52.5]} 20. Rb4 {[%clk 0:02:35.2]} 20...
Ncd5 {[%clk 0:02:52.7]} 21. Rc4 {[%clk 0:02:36.1]} 21... b5 {[%clk 0:02:54]} 22.
Bxd5 {[%clk 0:02:31.3]} 22... exd5 {[%clk 0:02:53]} 23. Rc5 {[%clk 0:02:32.2]}
23... Kd6 {[%clk 0:02:51.8]} 24. f3 {[%clk 0:02:30.7]} 24... Nd7 {[%clk
0:02:52.3]} 25. Rxb5 {[%clk 0:02:26]} 25... cxb5 {[%clk 0:02:53.1]} 26. Rb1
{[%clk 0:02:27.6]} 26... a6 {[%clk 0:02:53.9]} 27. Kf2 {[%clk 0:02:28.3]} 27...
Nb6 {[%clk 0:02:54.4]} 28. Ke3 {[%clk 0:02:25.7]} 28... Nc4+ {[%clk 0:02:55.5]}
29. Kf4 {[%clk 0:02:27]} 29... g6 {[%clk 0:02:57]} 30. Kg5 {[%clk 0:02:26.2]}
30... Ke6 {[%clk 0:02:56.7]} 31. f4 {[%clk 0:02:23.5]} 31... Rh5# {[%clk
0:02:53.4]} 0

[Event "Open Nuevo Centro. Jornada 1"]
[Site "Chess.com"]
[Date "2020.06.19"]
[Round "6"]
[White "Maestre Soler, Sergio"]
[Black "Gutierrez Lacambra, Jose Antonio"]
[Result "0-1"]
[WhiteElo "955"]
[BlackElo "1265"]
[TimeControl "180+2"]
[EndTime "11:35:34 PDT"]
[Termination "Victoria de sygm2012 por jaque mate"]

1. e4 {[%clk 0:03:01.7]} 1... c5 {[%clk 0:03:00]} 2. Bc4 {[%clk 0:03:02.2]} 2...
e6 {[%clk 0:03:01]} 3. d3 {[%clk 0:02:58.6]} 3... d5 {[%clk 0:03:01.9]} 4. exd5
{[%clk 0:02:55.1]} 4... exd5 {[%clk 0:03:02.3]} 5. Bb5+ {[%clk 0:02:55.9]} 5...
Nc6 {[%clk 0:03:03.1]} 6. Bxc6+ {[%clk 0:02:56.8]} 6... bxc6 {[%clk 0:03:03.9]}
7. Nf3 {[%clk 0:02:56.2]} 7... Nf6 {[%clk 0:03:04.6]} 8. Bg5 {[%clk 0:02:20.1]}
8... Be7 {[%clk 0:03:05.5]} 9. Bxf6 {[%clk 0:02:11.8]} 9... Bxf6 {[%clk
0:03:06.7]} 10. O-O {[%clk 0:02:08.2]} 10... Bxb2 {[%clk 0:03:05]} 11. Re1+
{[%clk 0:01:52.4]} 11... Be6 {[%clk 0:03:05.3]} 12. Nc3 {[%clk 0:01:49.5]} 12...
Bxc3 {[%clk 0:03:05.3]} 13. Rc1 {[%clk 0:01:45.4]} 13... Bxe1 {[%clk 0:03:05.6]}
14. Qxe1 {[%clk 0:01:35.2]} 14... O-O {[%clk 0:03:06.5]} 15. Ng5 {[%clk
0:01:25.2]} 15... Qxg5 {[%clk 0:03:04.8]} 16. Rd1 {[%clk 0:01:25.4]} 16... Rae8
{[%clk 0:02:57.1]} 17. h3 {[%clk 0:01:17.6]} 17... Bxh3 {[%clk 0:02:54.7]} 18.
Qxe8 {[%clk 0:01:00.4]} 18... Qxg2# {[%clk 0:02:53.2]} 0

[Event "Open Nuevo Centro. Jornada 1"]
[Site "Chess.com"]
[Date "2020.06.19"]
[Round "6"]
[White "Birnoveanu, Petru"]
[Black "M�ndez Gim�nez , N�stor Emmanuel"]
[Result "1-0"]
[WhiteElo "1554"]
[BlackElo "1136"]
[TimeControl "180+2"]
[EndTime "11:35:48 PDT"]
[Termination "Victoria de piculet por jaque mate"]

1. e4 {[%clk 0:03:01.9]} 1... e6 {[%clk 0:02:59.3]} 2. d4 {[%clk 0:02:59.4]}
2... c5 {[%clk 0:02:57.5]} 3. c3 {[%clk 0:02:59.3]} 3... Nc6 {[%clk 0:02:57.6]}
4. d5 {[%clk 0:02:59.4]} 4... exd5 {[%clk 0:02:58.4]} 5. exd5 {[%clk 0:03:00.3]}
5... Nce7 {[%clk 0:02:59.1]} 6. c4 {[%clk 0:03:00.2]} 6... Nf6 {[%clk
0:02:59.6]} 7. Nc3 {[%clk 0:03:00.8]} 7... Qa5 {[%clk 0:02:58.8]} 8. Bd2 {[%clk
0:02:58.9]} 8... Ne4 {[%clk 0:02:59.4]} 9. Nxe4 {[%clk 0:02:58.6]} 9... Qb6
{[%clk 0:02:56.5]} 10. Bc3 {[%clk 0:02:52.9]} 10... Nf5 {[%clk 0:02:55.8]} 11.
Nf3 {[%clk 0:02:41.5]} 11... Be7 {[%clk 0:02:55.7]} 12. a3 {[%clk 0:02:28.5]}
12... Nd4 {[%clk 0:02:54.1]} 13. Nxd4 {[%clk 0:02:26.4]} 13... cxd4 {[%clk
0:02:54.7]} 14. Qxd4 {[%clk 0:02:27.3]} 14... Qg6 {[%clk 0:02:54.1]} 15. d6
{[%clk 0:02:24.8]} 15... Bf6 {[%clk 0:02:54.5]} 16. Nxf6+ {[%clk 0:02:24.8]}
16... Qxf6 {[%clk 0:02:54.7]} 17. Qxf6 {[%clk 0:02:25.3]} 17... gxf6 {[%clk
0:02:55.5]} 18. Bxf6 {[%clk 0:02:25.2]} 18... Rg8 {[%clk 0:02:54.3]} 19. g3
{[%clk 0:02:08.6]} 19... Rg6 {[%clk 0:02:52.5]} 20. Be7 {[%clk 0:02:09.2]} 20...
Re6+ {[%clk 0:02:49.5]} 21. Kd2 {[%clk 0:02:09.8]} 21... b6 {[%clk 0:02:48.5]}
22. Bg2 {[%clk 0:02:09.5]} 22... Rb8 {[%clk 0:02:45.8]} 23. Bd5 {[%clk
0:02:09.3]} 23... Rxe7 {[%clk 0:02:45.6]} 24. dxe7 {[%clk 0:02:09.4]} 24... Kxe7
{[%clk 0:02:47.5]} 25. Rhe1+ {[%clk 0:02:07.7]} 25... Kd6 {[%clk 0:02:47.9]} 26.
Bxf7 {[%clk 0:02:07.3]} 26... Bb7 {[%clk 0:02:46.6]} 27. Kc3 {[%clk 0:02:03.1]}
27... Rf8 {[%clk 0:02:45.9]} 28. Rad1+ {[%clk 0:02:03.1]} 28... Kc5 {[%clk
0:02:45.1]} 29. b4+ {[%clk 0:02:00.4]} 29... Kc6 {[%clk 0:02:44]} 30. Bd5+
{[%clk 0:02:00.7]} 30... Kc7 {[%clk 0:02:44]} 31. Bxb7 {[%clk 0:02:01.4]} 31...
Kxb7 {[%clk 0:02:45.9]} 32. Rxd7+ {[%clk 0:02:01.7]} 32... Kc6 {[%clk
0:02:45.9]} 33. Rxh7 {[%clk 0:01:59.1]} 33... Rxf2 {[%clk 0:02:42]} 34. Re6#
{[%clk 0:01:59.2]} 1

[Event "Open Nuevo Centro. Jornada 1"]
[Site "Chess.com"]
[Date "2020.06.19"]
[Round "6"]
[White "Lopez Mateo, Juan Carlos"]
[Black "Kovacevic, Slobodan"]
[Result "1-0"]
[WhiteElo "1948"]
[BlackElo "2046"]
[TimeControl "180+2"]
[EndTime "11:36:05 PDT"]
[Termination "Victoria de Tarantantinov por jaque mate"]

1. e4 {[%clk 0:03:01.9]} 1... c5 {[%clk 0:02:58.8]} 2. Nf3 {[%clk 0:03:01.4]}
2... e6 {[%clk 0:02:58.2]} 3. b4 {[%clk 0:03:01.5]} 3... cxb4 {[%clk 0:02:56.4]}
4. a3 {[%clk 0:03:00.3]} 4... bxa3 {[%clk 0:02:54.9]} 5. d4 {[%clk 0:02:55.6]}
5... d6 {[%clk 0:02:51.1]} 6. Nxa3 {[%clk 0:02:52.9]} 6... Nd7 {[%clk
0:02:46.8]} 7. Bd3 {[%clk 0:02:50]} 7... a6 {[%clk 0:02:44.6]} 8. O-O {[%clk
0:02:43.1]} 8... Be7 {[%clk 0:02:42.1]} 9. Re1 {[%clk 0:02:34.6]} 9... b6 {[%clk
0:02:36.9]} 10. Bf4 {[%clk 0:02:29.2]} 10... Bb7 {[%clk 0:02:34.6]} 11. Nc4
{[%clk 0:02:26.9]} 11... Qc7 {[%clk 0:02:31.6]} 12. e5 {[%clk 0:02:24.6]} 12...
d5 {[%clk 0:02:17.9]} 13. Nd6+ {[%clk 0:02:24.6]} 13... Bxd6 {[%clk 0:02:14.7]}
14. exd6 {[%clk 0:02:24.8]} 14... Qc6 {[%clk 0:02:09.8]} 15. Ne5 {[%clk
0:01:54.6]} 15... Qc8 {[%clk 0:02:07.2]} 16. Qg4 {[%clk 0:01:45]} 16... Kf8
{[%clk 0:02:02]} 17. Nxf7 {[%clk 0:01:44.9]} 17... Kxf7 {[%clk 0:01:55.9]} 18.
Qxe6+ {[%clk 0:01:43.5]} 18... Kf8 {[%clk 0:01:54.7]} 19. Bf5 {[%clk 0:01:43.3]}
19... Ngf6 {[%clk 0:01:43.3]} 20. Qe7+ {[%clk 0:01:40.4]} 20... Kg8 {[%clk
0:01:39]} 21. Be6# {[%clk 0:01:41.9]} 1

[Event "Open Nuevo Centro. Jornada 1"]
[Site "Chess.com"]
[Date "2020.06.19"]
[Round "6"]
[White "Zamora Soler, Raul"]
[Black "Deusa Ballesteros, Luis Miguel"]
[Result "1-0"]
[WhiteElo "1753"]
[BlackElo "1502"]
[TimeControl "180+2"]
[EndTime "11:36:36 PDT"]
[Termination "Victoria de rzamora80 por abandono"]

1. e4 {[%clk 0:03:01.9]} 1... d5 {[%clk 0:03:00.2]} 2. e5 {[%clk 0:03:02.1]}
2... Bf5 {[%clk 0:03:00.3]} 3. d4 {[%clk 0:03:02.5]} 3... e6 {[%clk 0:03:01]} 4.
Nf3 {[%clk 0:03:02.6]} 4... c5 {[%clk 0:03:01.9]} 5. Bd3 {[%clk 0:03:03]} 5...
Bg6 {[%clk 0:03:01.2]} 6. c3 {[%clk 0:03:00.2]} 6... Nc6 {[%clk 0:02:59.1]} 7.
Bxg6 {[%clk 0:02:59.1]} 7... hxg6 {[%clk 0:02:59.6]} 8. Bg5 {[%clk 0:02:55.1]}
8... Be7 {[%clk 0:02:59.8]} 9. Bxe7 {[%clk 0:02:55.5]} 9... Qxe7 {[%clk
0:03:01.7]} 10. O-O {[%clk 0:02:56.1]} 10... Nh6 {[%clk 0:03:02.1]} 11. Nbd2
{[%clk 0:02:49.7]} 11... cxd4 {[%clk 0:03:01.8]} 12. cxd4 {[%clk 0:02:48.2]}
12... O-O {[%clk 0:03:01.9]} 13. a3 {[%clk 0:02:47.1]} 13... Rac8 {[%clk
0:03:01.8]} 14. b4 {[%clk 0:02:47.4]} 14... a6 {[%clk 0:03:01.5]} 15. Rc1 {[%clk
0:02:47.1]} 15... b5 {[%clk 0:03:01.8]} 16. Nb3 {[%clk 0:02:47.8]} 16... Nb8
{[%clk 0:02:56.7]} 17. Nc5 {[%clk 0:02:45.9]} 17... Qa7 {[%clk 0:02:56.1]} 18.
Qd3 {[%clk 0:02:41.7]} 18... Nd7 {[%clk 0:02:55.4]} 19. h3 {[%clk 0:02:31.1]}
19... Nxc5 {[%clk 0:02:53.6]} 20. Rxc5 {[%clk 0:02:30.2]} 20... Nf5 {[%clk
0:02:51]} 21. Rfc1 {[%clk 0:02:27.5]} 21... Qb7 {[%clk 0:02:42.7]} 22. Qc2
{[%clk 0:02:22.2]} 22... Ne7 {[%clk 0:02:41.3]} 23. Rc7 {[%clk 0:02:20.9]} 23...
Rxc7 {[%clk 0:02:36.1]} 24. Qxc7 {[%clk 0:02:21.6]} 24... Rb8 {[%clk 0:02:26.3]}
25. Ng5 {[%clk 0:02:15.8]} 25... Kf8 {[%clk 0:02:17.6]} 26. g4 {[%clk
0:02:09.3]} 26... Qxc7 {[%clk 0:02:09.6]} 27. Rxc7 {[%clk 0:02:09.6]} 27... Rc8
{[%clk 0:02:11]} 28. Ra7 {[%clk 0:01:58.8]} 28... Rc4 {[%clk 0:01:45.4]} 29.
Rxa6 {[%clk 0:01:51.4]} 29... Rxd4 {[%clk 0:01:44.7]} 30. Ra8+ {[%clk
0:01:52.2]} 30... Nc8 {[%clk 0:01:43]} 31. Rxc8+ {[%clk 0:01:53.2]} 1